[Event "Late-Titled-Tuesday-Blitz-March-05-2024"]
[Site "Chess.com"]
[Date "2024.03.05"]
[Round "1"]
[White "Szparu"]
[Black "db-banana"]
[Result "1-0"]
[WhiteElo "2793"]
[BlackElo "2463"]
[TimeControl "180+1"]
[EndTime "14:09:41 PST"]
[Termination "Szparu won on time"]

1. e4 {[%clk 0:03:00.9]} 1... Nf6 {[%clk 0:02:59.3]} 2. e5 {[%clk 0:03:01]} 2...
Nd5 {[%clk 0:03:00]} 3. d4 {[%clk 0:03:01.6]} 3... d6 {[%clk 0:03:00.3]} 4. c4
{[%clk 0:03:02.1]} 4... Nb6 {[%clk 0:03:00.5]} 5. f4 {[%clk 0:03:02.8]} 5...
dxe5 {[%clk 0:02:58.2]} 6. fxe5 {[%clk 0:03:02.5]} 6... Nc6 {[%clk 0:02:58.5]}
7. Be3 {[%clk 0:03:02.4]} 7... Bf5 {[%clk 0:02:59]} 8. Nc3 {[%clk 0:03:02.4]}
8... e6 {[%clk 0:02:59.6]} 9. Be2 {[%clk 0:03:02.4]} 9... Be7 {[%clk 0:02:59.4]}
10. Nf3 {[%clk 0:03:02.7]} 10... O-O {[%clk 0:02:58.9]} 11. O-O {[%clk 0:03:03]}
11... f6 {[%clk 0:02:59]} 12. exf6 {[%clk 0:03:03.4]} 12... Bxf6 {[%clk
0:02:59]} 13. Qd2 {[%clk 0:03:03.8]} 13... Qd7 {[%clk 0:02:42.4]} 14. Rad1
{[%clk 0:03:04.1]} 14... Rad8 {[%clk 0:02:41.3]} 15. Qc1 {[%clk 0:03:04.4]}
15... Qe7 {[%clk 0:02:23]} 16. h3 {[%clk 0:03:04.3]} 16... Bg6 {[%clk
0:02:14.9]} 17. Kh1 {[%clk 0:03:02.7]} 17... Bh5 {[%clk 0:02:11.3]} 18. g4
{[%clk 0:03:02.5]} 18... e5 {[%clk 0:01:14.5]} 19. d5 {[%clk 0:02:45]} 19... e4
{[%clk 0:01:06.8]} 20. Ng1 {[%clk 0:02:34.1]} 20... Ne5 {[%clk 0:00:43.7]} 21.
gxh5 {[%clk 0:02:34.2]} 21... Bh4 {[%clk 0:00:37.1]} 22. Rxf8+ {[%clk
0:02:31.7]} 22... Rxf8 {[%clk 0:00:38]} 23. Rf1 {[%clk 0:02:32.1]} 23... Re8
{[%clk 0:00:25.1]} 24. b3 {[%clk 0:02:26.2]} 24... Nd3 {[%clk 0:00:23.8]} 25.
Qd2 {[%clk 0:02:22.6]} 25... Bg3 {[%clk 0:00:21.5]} 26. Bxb6 {[%clk 0:02:21.3]}
26... axb6 {[%clk 0:00:20.6]} 27. Bxd3 {[%clk 0:02:21.9]} 27... exd3 {[%clk
0:00:20.9]} 28. Qxd3 {[%clk 0:02:22.5]} 28... Bd6 {[%clk 0:00:21.2]} 29. Qf3
{[%clk 0:02:12.6]} 29... Qe5 {[%clk 0:00:20.8]} 30. Rf2 {[%clk 0:02:08.7]} 30...
Rf8 {[%clk 0:00:17.4]} 31. Re2 {[%clk 0:01:38.9]} 31... Rxf3 {[%clk 0:00:15.6]}
32. Rxe5 {[%clk 0:01:39.6]} 32... Rxc3 {[%clk 0:00:15.5]} 33. Re2 {[%clk
0:01:40.2]} 33... Rd3 {[%clk 0:00:13.4]} 34. Kg2 {[%clk 0:01:39.5]} 34... b5
{[%clk 0:00:10.2]} 35. Nf3 {[%clk 0:01:39.1]} 35... bxc4 {[%clk 0:00:10]} 36.
bxc4 {[%clk 0:01:40]} 36... Rc3 {[%clk 0:00:09.9]} 37. Re4 {[%clk 0:01:39.7]}
37... Rc2+ {[%clk 0:00:09.5]} 38. Kf1 {[%clk 0:01:40]} 38... Rxa2 {[%clk
0:00:09.4]} 39. Nd4 {[%clk 0:01:39.4]} 39... Ra1+ {[%clk 0:00:09.5]} 40. Ke2
{[%clk 0:01:39.3]} 40... Ra2+ {[%clk 0:00:07.1]} 41. Kf3 {[%clk 0:01:39.4]}
41... Ra3+ {[%clk 0:00:05.5]} 42. Kg4 {[%clk 0:01:39.9]} 42... Rg3+ {[%clk
0:00:03.8]} 43. Kh4 {[%clk 0:01:40.4]} 43... g5+ {[%clk 0:00:04.4]} 44. hxg6
{[%clk 0:01:40.7]} 44... hxg6 {[%clk 0:00:05.3]} 45. c5 {[%clk 0:01:31.4]} 45...
g5+ {[%clk 0:00:04]} 46. Kh5 {[%clk 0:01:32.1]} 46... Bxc5 {[%clk 0:00:04.1]}
47. Nf5 {[%clk 0:01:32.6]} 47... Rxh3+ {[%clk 0:00:04.3]} 48. Kg6 {[%clk
0:01:33.2]} 48... Kf8 {[%clk 0:00:03.3]} 49. Ng7 {[%clk 0:01:32.9]} 49... Be7
{[%clk 0:00:02.5]} 50. Ra4 {[%clk 0:01:33.1]} 50... Bd8 {[%clk 0:00:02.3]} 51.
Ra8 {[%clk 0:01:32.4]} 51... Ke7 {[%clk 0:00:03.2]} 52. Ne6 {[%clk 0:01:32.3]}
52... Rd3 {[%clk 0:00:02.9]} 53. Rxd8 {[%clk 0:01:31.9]} 53... c6 {[%clk
0:00:03.2]} 54. Rc8 {[%clk 0:01:00.3]} 54... Rxd5 {[%clk 0:00:03.5]} 55. Nxg5
{[%clk 0:01:01]} 55... Rd1 {[%clk 0:00:04.1]} 56. Rc7+ {[%clk 0:01:01.1]} 56...
Kd6 {[%clk 0:00:04.7]} 57. Rxb7 {[%clk 0:01:01.5]} 57... c5 {[%clk 0:00:05]} 58.
Kf5 {[%clk 0:00:58.1]} 58... Rd5+ {[%clk 0:00:03.4]} 59. Kf4 {[%clk 0:00:58.1]}
59... Rd1 {[%clk 0:00:03.3]} 60. Rb2 {[%clk 0:00:57.1]} 60... c4 {[%clk
0:00:03.1]} 61. Rb5 {[%clk 0:00:55.3]} 61... Kc6 {[%clk 0:00:03.3]} 62. Ra5
{[%clk 0:00:55]} 62... c3 {[%clk 0:00:03.7]} 63. Ne4 {[%clk 0:00:54.8]} 63... c2
{[%clk 0:00:03.2]} 64. Rc5+ {[%clk 0:00:55.1]} 64... Kd7 {[%clk 0:00:03.4]} 65.
Rxc2 {[%clk 0:00:56]} 65... Rf1+ {[%clk 0:00:03.7]} 66. Ke5 {[%clk 0:00:56.3]}
66... Ra1 {[%clk 0:00:03.5]} 67. Nc5+ {[%clk 0:00:55]} 67... Ke7 {[%clk
0:00:03.9]} 68. Rh2 {[%clk 0:00:53.4]} 68... Re1+ {[%clk 0:00:04.2]} 69. Ne4
{[%clk 0:00:53.2]} 69... Kd7 {[%clk 0:00:04.8]} 70. Rh6 {[%clk 0:00:52.3]} 70...
Ra1 {[%clk 0:00:04.1]} 71. Nc5+ {[%clk 0:00:52.2]} 71... Kc7 {[%clk 0:00:04.2]}
72. Kd5 {[%clk 0:00:52.1]} 72... Rd1+ {[%clk 0:00:03.3]} 73. Kc4 {[%clk
0:00:52.6]} 73... Rc1+ {[%clk 0:00:03.9]} 74. Kb4 {[%clk 0:00:52.6]} 74... Rb1+
{[%clk 0:00:04.5]} 75. Nb3 {[%clk 0:00:53.3]} 75... Kd7 {[%clk 0:00:04.6]} 76.
Kc4 {[%clk 0:00:53.5]} 76... Ke7 {[%clk 0:00:03.5]} 77. Nd4 {[%clk 0:00:53.6]}
77... Rc1+ {[%clk 0:00:03.7]} 78. Kd5 {[%clk 0:00:54]} 78... Kf7 {[%clk
0:00:04.2]} 79. Re6 {[%clk 0:00:47.7]} 79... Ra1 {[%clk 0:00:04.3]} 80. Re2
{[%clk 0:00:45.7]} 80... Ra5+ {[%clk 0:00:04.7]} 81. Ke4 {[%clk 0:00:46.1]}
81... Ra8 {[%clk 0:00:04.5]} 82. Rf2+ {[%clk 0:00:43.6]} 82... Ke7 {[%clk
0:00:05.1]} 83. Rh2 {[%clk 0:00:41.9]} 83... Ra1 {[%clk 0:00:05.2]} 84. Rf2
{[%clk 0:00:36.6]} 84... Kd6 {[%clk 0:00:04.6]} 85. Rf6+ {[%clk 0:00:36.4]}
85... Ke7 {[%clk 0:00:04.5]} 86. Rb6 {[%clk 0:00:35.8]} 86... Ra2 {[%clk
0:00:03.5]} 87. Ke5 {[%clk 0:00:34]} 87... Ra5+ {[%clk 0:00:03.5]} 88. Kf4
{[%clk 0:00:33.7]} 88... Ra1 {[%clk 0:00:03.2]} 89. Nf5+ {[%clk 0:00:34.1]}
89... Kd7 {[%clk 0:00:03]} 90. Rd6+ {[%clk 0:00:32.8]} 90... Kc7 {[%clk
0:00:03.7]} 91. Rd2 {[%clk 0:00:33.2]} 91... Ra4+ {[%clk 0:00:03.3]} 92. Ke5
{[%clk 0:00:33]} 92... Ra5+ {[%clk 0:00:03.6]} 93. Ke6 {[%clk 0:00:33.3]} 93...
Ra6+ {[%clk 0:00:03.5]} 94. Ke7 {[%clk 0:00:33.7]} 94... Kc6 {[%clk 0:00:03.3]}
95. Rd6+ {[%clk 0:00:32.3]} 95... Kb5 {[%clk 0:00:03.5]} 96. Nd4+ {[%clk
0:00:32.9]} 96... Ka5 {[%clk 0:00:03]} 97. Rd5+ {[%clk 0:00:30.7]} 97... Kb4
{[%clk 0:00:02.8]} 98. Rd8 {[%clk 0:00:28.5]} 98... Kc4 {[%clk 0:00:02.9]} 99.
Nf5 {[%clk 0:00:28.1]} 99... Kc3 {[%clk 0:00:02.3]} 100. Nd6 {[%clk 0:00:26.7]}
100... Kd2 {[%clk 0:00:01.9]} 101. Ke6 {[%clk 0:00:24.6]} 101... Ke2 {[%clk
0:00:02.8]} 102. Rb8 {[%clk 0:00:23.9]} 102... Ra5 {[%clk 0:00:03.3]} 103. Rb3
{[%clk 0:00:24.8]} 103... Rh5 {[%clk 0:00:03.2]} 104. Nf5 {[%clk 0:00:24.9]}
104... Rh1 {[%clk 0:00:02.7]} 105. Ng3+ {[%clk 0:00:25.3]} 1-0

[Event "Late-Titled-Tuesday-Blitz-March-05-2024"]
[Site "Chess.com"]
[Date "2024.03.05"]
[Round "1"]
[White "kids2010"]
[Black "rodp92"]
[Result "1/2-1/2"]
[WhiteElo "2800"]
[BlackElo "2483"]
[TimeControl "180+1"]
[EndTime "14:09:51 PST"]
[Termination "Game drawn - insufficient material"]

1. e4 {[%clk 0:02:59.2]} 1... g6 {[%clk 0:03:00.1]} 2. d4 {[%clk 0:02:58.6]}
2... c6 {[%clk 0:03:00.4]} 3. Nc3 {[%clk 0:02:58.2]} 3... d5 {[%clk 0:03:00.7]}
4. e5 {[%clk 0:02:58.4]} 4... Bg7 {[%clk 0:02:58.8]} 5. f4 {[%clk 0:02:58.5]}
5... Nh6 {[%clk 0:02:57.6]} 6. Nf3 {[%clk 0:02:58.5]} 6... O-O {[%clk
0:02:56.7]} 7. Bd3 {[%clk 0:02:58.3]} 7... Bg4 {[%clk 0:02:55.6]} 8. O-O {[%clk
0:02:56.8]} 8... f6 {[%clk 0:02:55.5]} 9. Be3 {[%clk 0:02:52.2]} 9... Nf5 {[%clk
0:02:54.1]} 10. Bf2 {[%clk 0:02:52]} 10... a6 {[%clk 0:02:52.5]} 11. h3 {[%clk
0:02:46.4]} 11... Bxf3 {[%clk 0:02:52.6]} 12. Qxf3 {[%clk 0:02:47.3]} 12... fxe5
{[%clk 0:02:46.9]} 13. dxe5 {[%clk 0:02:47.1]} 13... e6 {[%clk 0:02:45.4]} 14.
Rae1 {[%clk 0:02:33.1]} 14... Nd7 {[%clk 0:02:45.3]} 15. g4 {[%clk 0:02:26.3]}
15... Ne7 {[%clk 0:02:37.6]} 16. Qg2 {[%clk 0:02:13.3]} 16... Rxf4 {[%clk
0:02:27.1]} 17. Bg3 {[%clk 0:02:11]} 17... Qb6+ {[%clk 0:02:16.5]} 18. Kh1
{[%clk 0:02:04.4]} 18... Rxf1+ {[%clk 0:02:16.4]} 19. Rxf1 {[%clk 0:02:05.3]}
19... Qxb2 {[%clk 0:02:09.7]} 20. Ne2 {[%clk 0:02:02.7]} 20... Rf8 {[%clk
0:02:04]} 21. Nf4 {[%clk 0:01:56.4]} 21... Bxe5 {[%clk 0:01:50.8]} 22. Nxe6
{[%clk 0:01:45.1]} 22... Rxf1+ {[%clk 0:01:49.1]} 23. Bxf1 {[%clk 0:01:46]}
23... Bxg3 {[%clk 0:01:28.6]} 24. Qxg3 {[%clk 0:01:46.9]} 24... Qe5 {[%clk
0:01:28.1]} 25. Qxe5 {[%clk 0:01:46.7]} 25... Nxe5 {[%clk 0:01:29]} 26. Nc5
{[%clk 0:01:47.3]} 26... b5 {[%clk 0:01:16.6]} 27. Nxa6 {[%clk 0:01:46.1]} 27...
Kf7 {[%clk 0:01:14.7]} 28. Nc5 {[%clk 0:01:44.8]} 28... Nc8 {[%clk 0:01:08.2]}
29. a4 {[%clk 0:01:40.8]} 29... bxa4 {[%clk 0:01:06.5]} 30. Nxa4 {[%clk
0:01:41.7]} 30... Ke7 {[%clk 0:01:05.9]} 31. Kg2 {[%clk 0:01:40.6]} 31... Kd6
{[%clk 0:01:05.9]} 32. Nc3 {[%clk 0:01:40.7]} 32... Nb6 {[%clk 0:01:03.5]} 33.
Kg3 {[%clk 0:01:38.2]} 33... Nbc4 {[%clk 0:01:03.5]} 34. Nd1 {[%clk 0:01:36.9]}
34... Nd2 {[%clk 0:01:00.6]} 35. Be2 {[%clk 0:01:33.1]} 35... Ne4+ {[%clk
0:01:00.1]} 36. Kf4 {[%clk 0:01:31.1]} 36... Ke6 {[%clk 0:00:58.8]} 37. g5
{[%clk 0:01:26.3]} 37... Nd6 {[%clk 0:00:56.3]} 38. Ne3 {[%clk 0:01:22.5]} 38...
d4 {[%clk 0:00:51.3]} 39. Nd1 {[%clk 0:01:20.3]} 39... c5 {[%clk 0:00:50.2]} 40.
h4 {[%clk 0:01:12.2]} 40... Kd5 {[%clk 0:00:50.4]} 41. h5 {[%clk 0:01:10.3]}
41... c4 {[%clk 0:00:48]} 42. Nf2 {[%clk 0:01:09.6]} 42... gxh5 {[%clk 0:00:43]}
43. Bxh5 {[%clk 0:01:09.6]} 43... d3 {[%clk 0:00:43.1]} 44. cxd3 {[%clk
0:01:10.5]} 44... cxd3 {[%clk 0:00:40.2]} 45. Bd1 {[%clk 0:01:07.8]} 45... Kd4
{[%clk 0:00:37.4]} 46. Ng4 {[%clk 0:01:01.5]} 46... Nxg4 {[%clk 0:00:34.9]} 47.
Kxg4 {[%clk 0:01:02.4]} 47... Ke3 {[%clk 0:00:33.6]} 48. Kh5 {[%clk 0:00:59]}
48... Ne4 {[%clk 0:00:29.5]} 49. Kh6 {[%clk 0:00:56.7]} 49... Kf4 {[%clk
0:00:24.4]} 50. Kxh7 {[%clk 0:00:53.3]} 50... Nxg5+ {[%clk 0:00:23.7]} 51. Kg6
{[%clk 0:00:52.4]} 51... Ne4 {[%clk 0:00:23.6]} 52. Kh5 {[%clk 0:00:52.2]} 52...
Ke3 {[%clk 0:00:22.8]} 53. Ba4 {[%clk 0:00:49]} 53... Kd4 {[%clk 0:00:18.7]} 54.
Kg4 {[%clk 0:00:46.6]} 54... Ke3 {[%clk 0:00:18.8]} 55. Bb3 {[%clk 0:00:43.6]}
55... Nd2 {[%clk 0:00:18.8]} 56. Ba4 {[%clk 0:00:43]} 56... Nc4 {[%clk
0:00:18.9]} 57. Kg3 {[%clk 0:00:42.7]} 57... Nb2 {[%clk 0:00:19.3]} 58. Bb3
{[%clk 0:00:41.9]} 58... Kd4 {[%clk 0:00:19.4]} 59. Kf2 {[%clk 0:00:40.5]} 59...
Kc3 {[%clk 0:00:19.8]} 60. Be6 {[%clk 0:00:34.4]} 60... Nc4 {[%clk 0:00:17.6]}
61. Bg4 {[%clk 0:00:33.7]} 61... Nd2 {[%clk 0:00:16.1]} 62. Bh5 {[%clk
0:00:33.6]} 62... Nb3 {[%clk 0:00:16.2]} 63. Ke3 {[%clk 0:00:33.2]} 63... Nd2
{[%clk 0:00:15.4]} 64. Bg6 {[%clk 0:00:29.9]} 64... Nc4+ {[%clk 0:00:15.6]} 65.
Kf2 {[%clk 0:00:29.8]} 65... d2 {[%clk 0:00:16]} 66. Bh5 {[%clk 0:00:29.9]}
66... Nb2 {[%clk 0:00:15.6]} 67. Bg4 {[%clk 0:00:29.6]} 67... Nd3+ {[%clk
0:00:15.6]} 68. Ke3 {[%clk 0:00:29.1]} 68... Ne5 {[%clk 0:00:15.5]} 69. Bh5
{[%clk 0:00:29.4]} 69... Nc4+ {[%clk 0:00:15.6]} 70. Kf2 {[%clk 0:00:29.3]}
70... Nb2 {[%clk 0:00:16]} 71. Bg4 {[%clk 0:00:29.6]} 71... Nd3+ {[%clk
0:00:16.1]} 72. Ke3 {[%clk 0:00:29.3]} 72... Ne5 {[%clk 0:00:17]} 73. Bh5 {[%clk
0:00:29.5]} 73... Nf7 {[%clk 0:00:15.6]} 74. Kf2 {[%clk 0:00:29.1]} 74... Ng5
{[%clk 0:00:15.6]} 75. Ke3 {[%clk 0:00:29.4]} 75... Nh3 {[%clk 0:00:15.4]} 76.
Bg4 {[%clk 0:00:29.2]} 76... Ng5 {[%clk 0:00:14.8]} 77. Bh5 {[%clk 0:00:29.3]}
77... Kc2 {[%clk 0:00:13.6]} 78. Kf2 {[%clk 0:00:29.1]} 78... Kc1 {[%clk
0:00:13.8]} 79. Ke3 {[%clk 0:00:29.3]} 79... Ne6 {[%clk 0:00:12.9]} 80. Kf2
{[%clk 0:00:29.2]} 80... Nd4 {[%clk 0:00:13.2]} 81. Ke3 {[%clk 0:00:29.1]} 81...
Nc2+ {[%clk 0:00:13.5]} 82. Kf2 {[%clk 0:00:29]} 82... Nb4 {[%clk 0:00:14]} 83.
Ke3 {[%clk 0:00:29]} 83... Na2 {[%clk 0:00:14.5]} 84. Kf2 {[%clk 0:00:29.3]}
84... Nc3 {[%clk 0:00:14.9]} 85. Ke3 {[%clk 0:00:29.6]} 85... Nd5+ {[%clk
0:00:15.2]} 86. Kf2 {[%clk 0:00:29.6]} 86... Nf4 {[%clk 0:00:15.5]} 87. Bg4
{[%clk 0:00:28.9]} 87... Ne6 {[%clk 0:00:14]} 88. Ke3 {[%clk 0:00:28.7]} 88...
Nc5 {[%clk 0:00:13.6]} 89. Kf2 {[%clk 0:00:28.8]} 89... Nb3 {[%clk 0:00:13.7]}
90. Ke3 {[%clk 0:00:29]} 90... Na1 {[%clk 0:00:13.8]} 91. Kf2 {[%clk 0:00:29.1]}
91... Nc2 {[%clk 0:00:14.2]} 92. Bh5 {[%clk 0:00:29.6]} 92... Nd4 {[%clk
0:00:14.2]} 93. Bg4 {[%clk 0:00:29.3]} 93... Nf5 {[%clk 0:00:13.7]} 94. Bh5
{[%clk 0:00:29.1]} 94... Ng7 {[%clk 0:00:13.2]} 95. Bg4 {[%clk 0:00:29.2]} 95...
Kc2 {[%clk 0:00:13.5]} 96. Ke3 {[%clk 0:00:29.2]} 96... Ne6 {[%clk 0:00:10.3]}
97. Kf2 {[%clk 0:00:29.2]} 97... Nf4 {[%clk 0:00:09.9]} 98. Ke3 {[%clk
0:00:28.7]} 98... Nd3 {[%clk 0:00:08.9]} 99. Bh5 {[%clk 0:00:27.4]} 99... Ne1
{[%clk 0:00:08.6]} 100. Bg4 {[%clk 0:00:26.4]} 100... Ng2+ {[%clk 0:00:08.6]}
101. Kf2 {[%clk 0:00:26.3]} 101... Nh4 {[%clk 0:00:08.9]} 102. Bh5 {[%clk
0:00:26]} 102... Nf5 {[%clk 0:00:08]} 103. Bg4 {[%clk 0:00:26]} 103... Ne3
{[%clk 0:00:07.9]} 104. Kxe3 {[%clk 0:00:25.6]} 104... Kc1 {[%clk 0:00:07.5]}
105. Be2 {[%clk 0:00:24.5]} 105... d1=Q {[%clk 0:00:07.5]} 106. Bxd1 {[%clk
0:00:24.6]} 1/2-1/2

[Event "Late-Titled-Tuesday-Blitz-March-05-2024"]
[Site "Chess.com"]
[Date "2024.03.05"]
[Round "1"]
[White "TheAlienParty"]
[Black "jk13"]
[Result "1/2-1/2"]
[WhiteElo "2405"]
[BlackElo "2673"]
[TimeControl "180+1"]
[EndTime "14:09:51 PST"]
[Termination "Game drawn by 50-move rule"]

1. c4 {[%clk 0:02:57.3]} 1... e6 {[%clk 0:02:59.5]} 2. Nf3 {[%clk 0:02:56.5]}
2... Nf6 {[%clk 0:02:59.1]} 3. e3 {[%clk 0:02:54.9]} 3... d5 {[%clk 0:02:59.6]}
4. b3 {[%clk 0:02:54.8]} 4... c6 {[%clk 0:02:59.3]} 5. Bb2 {[%clk 0:02:54.2]}
5... Nbd7 {[%clk 0:03:00]} 6. Bd3 {[%clk 0:02:52.4]} 6... Bd6 {[%clk 0:03:00.4]}
7. Qc2 {[%clk 0:02:51.9]} 7... a5 {[%clk 0:03:00]} 8. h4 {[%clk 0:02:49.6]} 8...
a4 {[%clk 0:02:59.6]} 9. Ng5 {[%clk 0:02:49]} 9... a3 {[%clk 0:02:48.6]} 10. Bc3
{[%clk 0:02:47.4]} 10... e5 {[%clk 0:02:44.6]} 11. cxd5 {[%clk 0:02:31.3]} 11...
cxd5 {[%clk 0:02:44.4]} 12. Bf5 {[%clk 0:02:23.3]} 12... Qe7 {[%clk 0:02:40.5]}
13. d4 {[%clk 0:02:21.9]} 13... e4 {[%clk 0:02:36.3]} 14. Nd2 {[%clk 0:02:19.7]}
14... h6 {[%clk 0:02:35]} 15. Nh3 {[%clk 0:02:17.1]} 15... Nb6 {[%clk
0:02:25.2]} 16. Bxc8 {[%clk 0:02:13.8]} 16... Rxc8 {[%clk 0:02:26.1]} 17. Rc1
{[%clk 0:02:09]} 17... O-O {[%clk 0:02:16.5]} 18. O-O {[%clk 0:02:08.5]} 18...
Ng4 {[%clk 0:02:06.2]} 19. g3 {[%clk 0:02:07]} 19... Nxe3 {[%clk 0:01:57.7]} 20.
fxe3 {[%clk 0:02:05.4]} 20... Bxg3 {[%clk 0:01:58.4]} 21. Nb1 {[%clk 0:01:48.3]}
21... Qxh4 {[%clk 0:01:57.4]} 22. Qg2 {[%clk 0:01:48.2]} 22... Rc6 {[%clk
0:01:51.3]} 23. Nf4 {[%clk 0:01:47.2]} 23... Rf6 {[%clk 0:01:39.6]} 24. Bb4
{[%clk 0:01:44.4]} 24... Re8 {[%clk 0:01:36.1]} 25. Nxa3 {[%clk 0:01:43]} 25...
Bxf4 {[%clk 0:01:25.9]} 26. Rxf4 {[%clk 0:01:41.6]} 26... Rxf4 {[%clk
0:01:26.5]} 27. exf4 {[%clk 0:01:41.8]} 27... Qxf4 {[%clk 0:01:26.8]} 28. Rf1
{[%clk 0:01:41.3]} 28... Qe3+ {[%clk 0:01:24.7]} 29. Qf2 {[%clk 0:01:41.4]}
29... Qg5+ {[%clk 0:01:24.6]} 30. Qg2 {[%clk 0:01:41.4]} 30... Qxg2+ {[%clk
0:01:21.9]} 31. Kxg2 {[%clk 0:01:41.3]} 31... Rc8 {[%clk 0:01:22.7]} 32. Nb5
{[%clk 0:01:39.5]} 32... Rc2+ {[%clk 0:01:15.6]} 33. Rf2 {[%clk 0:01:39.3]}
33... Rxf2+ {[%clk 0:01:15.3]} 34. Kxf2 {[%clk 0:01:39.3]} 34... Nd7 {[%clk
0:01:13.4]} 35. a4 {[%clk 0:01:39.2]} 35... f6 {[%clk 0:01:06.6]} 36. Bd6 {[%clk
0:01:39.3]} 36... Kf7 {[%clk 0:01:04.5]} 37. Nc7 {[%clk 0:01:39.4]} 37... f5
{[%clk 0:01:01.6]} 38. b4 {[%clk 0:01:39.2]} 38... g5 {[%clk 0:00:58.7]} 39. a5
{[%clk 0:01:39.2]} 39... f4 {[%clk 0:00:48.1]} 40. b5 {[%clk 0:01:35.7]} 40...
e3+ {[%clk 0:00:45.5]} 41. Ke2 {[%clk 0:01:35.7]} 41... h5 {[%clk 0:00:43.3]}
42. a6 {[%clk 0:01:35.1]} 42... bxa6 {[%clk 0:00:44.2]} 43. bxa6 {[%clk
0:01:34.7]} 43... Nb6 {[%clk 0:00:38.3]} 44. a7 {[%clk 0:01:32.7]} 44... h4
{[%clk 0:00:37.6]} 45. Nxd5 {[%clk 0:01:32.5]} 45... Na8 {[%clk 0:00:37]} 46.
Nxf4 {[%clk 0:01:30.6]} 46... gxf4 {[%clk 0:00:36.6]} 47. Bxf4 {[%clk
0:01:30.9]} 47... Ke6 {[%clk 0:00:36.5]} 48. Kxe3 {[%clk 0:01:31.1]} 48... Kd5
{[%clk 0:00:36.7]} 49. Be5 {[%clk 0:01:30.6]} 49... Kc6 {[%clk 0:00:35]} 50. Kf3
{[%clk 0:01:29.6]} 50... Kd5 {[%clk 0:00:31.4]} 51. Kg4 {[%clk 0:01:29.4]} 51...
Nb6 {[%clk 0:00:31.6]} 52. Kxh4 {[%clk 0:01:29.5]} 52... Kc6 {[%clk 0:00:28.1]}
53. Kg5 {[%clk 0:01:28.4]} 53... Kb7 {[%clk 0:00:28.5]} 54. Bb8 {[%clk 0:01:27]}
54... Kc6 {[%clk 0:00:23.6]} 55. Kf5 {[%clk 0:01:26.7]} 55... Kd5 {[%clk
0:00:23.9]} 56. Bc7 {[%clk 0:01:26.1]} 56... Na8 {[%clk 0:00:23.4]} 57. Be5
{[%clk 0:01:26.1]} 57... Nb6 {[%clk 0:00:23.1]} 58. Kf6 {[%clk 0:01:25.9]} 58...
Na8 {[%clk 0:00:19.9]} 59. Ke7 {[%clk 0:01:25.8]} 59... Kc6 {[%clk 0:00:19]} 60.
Kd8 {[%clk 0:01:25.1]} 60... Nb6 {[%clk 0:00:18.9]} 61. Bc7 {[%clk 0:01:21.7]}
61... Na8 {[%clk 0:00:16.9]} 62. Ba5 {[%clk 0:01:21.5]} 62... Kb5 {[%clk
0:00:15.1]} 63. Kc8 {[%clk 0:01:17]} 63... Kxa5 {[%clk 0:00:13.8]} 64. Kb7
{[%clk 0:01:17.2]} 64... Nb6 {[%clk 0:00:14.1]} 65. d5 {[%clk 0:01:17.2]} 65...
Kb5 {[%clk 0:00:12.5]} 66. d6 {[%clk 0:01:17.1]} 66... Kc5 {[%clk 0:00:07.6]}
67. d7 {[%clk 0:01:17]} 67... Nxd7 {[%clk 0:00:08]} 68. a8=Q {[%clk 0:01:16.3]}
68... Ne5 {[%clk 0:00:08.1]} 69. Qa5+ {[%clk 0:01:15.7]} 69... Kd4 {[%clk
0:00:08.6]} 70. Qd2+ {[%clk 0:01:15.3]} 70... Kc5 {[%clk 0:00:07.8]} 71. Qe3+
{[%clk 0:01:14.7]} 71... Kd5 {[%clk 0:00:08.3]} 72. Kc8 {[%clk 0:01:14.1]} 72...
Nc6 {[%clk 0:00:08.4]} 73. Kd7 {[%clk 0:01:13.4]} 73... Ne5+ {[%clk 0:00:08.5]}
74. Ke8 {[%clk 0:01:13.5]} 74... Nc6 {[%clk 0:00:08.9]} 75. Qd2+ {[%clk
0:01:13.1]} 75... Kc5 {[%clk 0:00:08.6]} 76. Kd7 {[%clk 0:01:12.1]} 76... Ne5+
{[%clk 0:00:09.2]} 77. Kc7 {[%clk 0:01:12.3]} 77... Nc4 {[%clk 0:00:09.1]} 78.
Qf2+ {[%clk 0:01:12.3]} 78... Kd5 {[%clk 0:00:10]} 79. Kb7 {[%clk 0:01:12.1]}
79... Nd6+ {[%clk 0:00:10.3]} 80. Ka6 {[%clk 0:01:12.1]} 80... Nc4 {[%clk
0:00:10.6]} 81. Kb5 {[%clk 0:01:12]} 81... Ne5 {[%clk 0:00:10.8]} 82. Qg2+
{[%clk 0:01:11.4]} 82... Kd4 {[%clk 0:00:10.9]} 83. Kb4 {[%clk 0:01:11.6]} 83...
Nd3+ {[%clk 0:00:11]} 84. Kb3 {[%clk 0:01:11.8]} 84... Nc5+ {[%clk 0:00:11.4]}
85. Kc2 {[%clk 0:01:11.7]} 85... Ne4 {[%clk 0:00:11.8]} 86. Qg7+ {[%clk
0:01:11.3]} 86... Kd5 {[%clk 0:00:12]} 87. Qb7+ {[%clk 0:01:10.8]} 87... Kd4
{[%clk 0:00:12.1]} 88. Qb4+ {[%clk 0:01:10.3]} 88... Kd5 {[%clk 0:00:12.7]} 89.
Kd3 {[%clk 0:01:10.5]} 89... Nc5+ {[%clk 0:00:12.8]} 90. Ke3 {[%clk 0:00:44.7]}
90... Ne6 {[%clk 0:00:12.9]} 91. Qa5+ {[%clk 0:00:44.3]} 91... Kc4 {[%clk
0:00:12]} 92. Ke4 {[%clk 0:00:43.6]} 92... Nc5+ {[%clk 0:00:12.2]} 93. Ke3
{[%clk 0:00:43.4]} 93... Nb3 {[%clk 0:00:12.1]} 94. Qa4+ {[%clk 0:00:42.7]}
94... Kc3 {[%clk 0:00:12.6]} 95. Qc6+ {[%clk 0:00:42.1]} 95... Kb4 {[%clk
0:00:11.9]} 96. Kd3 {[%clk 0:00:41.3]} 96... Nc5+ {[%clk 0:00:12.1]} 97. Kd2
{[%clk 0:00:39.6]} 97... Nb3+ {[%clk 0:00:12.4]} 98. Kd3 {[%clk 0:00:39.3]}
98... Nc5+ {[%clk 0:00:12.6]} 99. Kd4 {[%clk 0:00:39.5]} 99... Nb3+ {[%clk
0:00:13.3]} 100. Kd5 {[%clk 0:00:39.7]} 100... Nd2 {[%clk 0:00:12.4]} 101. Qc5+
{[%clk 0:00:38.2]} 101... Kb3 {[%clk 0:00:12.9]} 102. Qb5+ {[%clk 0:00:37.6]}
102... Kc3 {[%clk 0:00:13.3]} 103. Qa5+ {[%clk 0:00:36.5]} 103... Kd3 {[%clk
0:00:13.7]} 104. Qa3+ {[%clk 0:00:36.3]} 104... Ke2 {[%clk 0:00:14]} 105. Kd4
{[%clk 0:00:35.5]} 105... Nf3+ {[%clk 0:00:14.7]} 106. Ke4 {[%clk 0:00:34.6]}
106... Nd2+ {[%clk 0:00:14.6]} 107. Kf4 {[%clk 0:00:34.8]} 107... Nf1 {[%clk
0:00:13.8]} 108. Qc3 {[%clk 0:00:33.6]} 108... Nd2 {[%clk 0:00:13.9]} 109. Qc2
{[%clk 0:00:33.5]} 109... Ke1 {[%clk 0:00:12.7]} 110. Ke3 {[%clk 0:00:33.2]}
110... Nf1+ {[%clk 0:00:13]} 111. Kf3 {[%clk 0:00:33.1]} 111... Nd2+ {[%clk
0:00:13.1]} 112. Kg2 {[%clk 0:00:32.2]} 112... Ke2 {[%clk 0:00:13.1]} 113. Qb2
{[%clk 0:00:31.7]} 113... Kd3 {[%clk 0:00:13.5]} 114. Kf2 {[%clk 0:00:31.1]}
114... Ne4+ {[%clk 0:00:13.8]} 115. Kf3 {[%clk 0:00:30.7]} 115... Nd2+ {[%clk
0:00:13.9]} 116. Kf4 {[%clk 0:00:30.6]} 116... Nc4 {[%clk 0:00:14]} 117. Qb3+
{[%clk 0:00:30.5]} 117... Kd4 {[%clk 0:00:14.4]} 118. Qb4 {[%clk 0:00:30.4]}
1/2-1/2